{"text_format":"3","workbook":"xlsx","n_sheets":1,"sheets":["Balanço"],"not_rendered":{"defined_names":1},"read":"whole","date_system":"1900"}

{"sheet":"Balanço","index":0,"n_rows":50,"n_cols":5,"rows_kept":50,"merged":[[0,0,0,4],[1,0,1,4],[2,0,2,4]]}
["Balanço"]
["[Nome da Empresa]"]
[{"$f":"NOW()","v":"2012-07-13T03:30:06.060"}]
[]
[{"$nulls":3},2003,2004]
["Ativo"]
["Ativo circulante:"]
["Caixa"]
["Investimentos"]
["Inventários"]
["Contas a receber"]
["Despesas pagas antecipadamente"]
["Outros"]
["Total de ativo circulante",null,null,{"$f":"SUM(D8:D13)","v":0},{"$f":"SUM(E8:E13)","v":0}]
[]
["Ativo fixo:"]
["Propriedade e equipamento"]
["Benfeitorias em propriedade arrendada"]
["Patrimônio e outros investimentos"]
["Depreciação menos acumulada"]
["Ativo fixo líquido",null,null,{"$f":"D19+D14+D10","v":0},{"$f":"E19+E14+E10","v":0}]
[]
["Outros ativos:"]
["Fundo de comércio"]
["Total de outros ativos",null,null,{"$f":"D23+D18+D14","v":0},{"$f":"E23+E18+E14","v":0}]
[]
["Total de ativo",null,null,{"$f":"D25+D20+D16","v":0},{"$f":"E25+E20+E16","v":0}]
[]
["Passivo e patrimônio líquido"]
["Passivo circulante:"]
["Contas a pagar"]
["Ordenados provisionados"]
["Compensação provisionada"]
["Impostos de renda a pagar"]
["Receita não-auferida"]
["Outros"]
["Total de passivo circulante",null,null,{"$f":"D35+D30+D26","v":0},{"$f":"E35+E30+E26","v":0}]
[]
["Passivo a longo prazo:"]
["Hipoteca a pagar"]
["Total de passivo a longo prazo",null,null,{"$f":"D39+D34+D30","v":0},{"$f":"E39+E34+E30","v":0}]
[]
["Patrimônio líquido:"]
["Capital de investimentos"]
["Lucros retidos acumulados"]
["Total de patrimônio líquido",null,null,{"$f":"D44+D39+D35","v":0},{"$f":"E44+E39+E35","v":0}]
[]
["Total de passivo e patrimônio líquido",null,null,{"$f":"D46+D41+D37","v":0},{"$f":"E46+E41+E37","v":0}]
[{"$nulls":3},{"$f":"IF(D48>D27,\"Déficit\",IF(D27>D48,\"Superávit\",\"Saldo\"))","v":"Saldo"},{"$f":"IF(E48>E27,\"Déficit\",IF(E27>E48,\"Superávit\",\"Saldo\"))","v":"Saldo"}]
[null,null,"Diferença:",{"$f":"IF(D48>D27,D27-D48,IF(D27>D48,D48-D27,0))","v":{"v":0,"d":"R$0 "}},{"$f":"IF(E48>E27,E27-E48,IF(E27>E48,E48-E27,0))","v":{"v":0,"d":"R$0 "}}]